[Event "Late-Titled-Tuesday-Blitz-October-10-2023"]
[Site "Chess.com"]
[Date "2023.10.10"]
[Round "2"]
[White "Schwindle"]
[Black "Harsha_Bharathakoti"]
[Result "0-1"]
[WhiteElo "2409"]
[BlackElo "2905"]
[TimeControl "180+1"]
[EndTime "14:16:37 PDT"]
[Termination "Harsha_Bharathakoti won by resignation"]

1. e4 {[%clk 0:03:00.9]} 1... g6 {[%clk 0:02:58.6]} 2. d4 {[%clk 0:03:00.8]}
2... Bg7 {[%clk 0:02:59.4]} 3. Nc3 {[%clk 0:03:01.5]} 3... d6 {[%clk 0:03:00]}
4. f4 {[%clk 0:03:01.7]} 4... a6 {[%clk 0:03:00.5]} 5. Nf3 {[%clk 0:03:02.3]}
5... b5 {[%clk 0:03:01]} 6. Bd3 {[%clk 0:03:02.1]} 6... Nd7 {[%clk 0:03:01.6]}
7. O-O {[%clk 0:03:02.5]} 7... c5 {[%clk 0:03:01.8]} 8. e5 {[%clk 0:02:59]} 8...
cxd4 {[%clk 0:03:01.1]} 9. Nxd4 {[%clk 0:02:53.4]} 9... dxe5 {[%clk 0:02:59.3]}
10. fxe5 {[%clk 0:02:30.9]} 10... Nxe5 {[%clk 0:02:59.4]} 11. Be4 {[%clk
0:02:22.7]} 11... Ra7 {[%clk 0:02:59.7]} 12. Bf4 {[%clk 0:02:15.6]} 12... Rd7
{[%clk 0:02:04.5]} 13. Nce2 {[%clk 0:02:05.6]} 13... Qb6 {[%clk 0:01:25.4]} 14.
c3 {[%clk 0:01:58.6]} 14... Bb7 {[%clk 0:01:25.5]} 15. Qc2 {[%clk 0:01:52.5]}
15... Nc4 {[%clk 0:01:19.4]} 16. b3 {[%clk 0:01:28]} 16... Na3 {[%clk
0:01:15.7]} 17. Qd3 {[%clk 0:01:17]} 17... e5 {[%clk 0:01:16]} 18. Bxb7 {[%clk
0:01:12.6]} 18... Qxb7 {[%clk 0:01:08.4]} 19. Bc1 {[%clk 0:00:57.9]} 19... exd4
{[%clk 0:00:44.2]} 20. Bxa3 {[%clk 0:00:56.3]} 20... Ne7 {[%clk 0:00:44.8]} 21.
Bxe7 {[%clk 0:00:44.8]} 21... Rxe7 {[%clk 0:00:44.9]} 22. Nxd4 {[%clk
0:00:45.3]} 22... O-O {[%clk 0:00:45.6]} 23. Rae1 {[%clk 0:00:40.3]} 23... Rd8
{[%clk 0:00:45.6]} 24. b4 {[%clk 0:00:37.7]} 24... Red7 {[%clk 0:00:45.5]} 25.
Re4 {[%clk 0:00:34.4]} 25... Qb6 {[%clk 0:00:45.3]} 26. Rd1 {[%clk 0:00:30.2]}
26... f5 {[%clk 0:00:43.6]} 27. Ree1 {[%clk 0:00:12]} 27... Bxd4+ {[%clk
0:00:39.6]} 28. cxd4 {[%clk 0:00:12.9]} 28... Qxd4+ {[%clk 0:00:39.5]} 29. Qxd4
{[%clk 0:00:12.2]} 29... Rxd4 {[%clk 0:00:40.4]} 30. Rxd4 {[%clk 0:00:12.4]}
30... Rxd4 {[%clk 0:00:41.3]} 31. Re6 {[%clk 0:00:10.5]} 31... Rd1+ {[%clk
0:00:41.4]} 32. Kf2 {[%clk 0:00:10.6]} 32... Rd2+ {[%clk 0:00:42.3]} 33. Re2
{[%clk 0:00:09.9]} 33... Rxe2+ {[%clk 0:00:42]} 34. Kxe2 {[%clk 0:00:10.8]}
34... Kf7 {[%clk 0:00:42.5]} 35. Ke3 {[%clk 0:00:11.3]} 35... Ke6 {[%clk
0:00:43.1]} 0-1

[Event "Late-Titled-Tuesday-Blitz-October-10-2023"]
[Site "Chess.com"]
[Date "2023.10.10"]
[Round "2"]
[White "hansen"]
[Black "AlleyOoper"]
[Result "1-0"]
[WhiteElo "2921"]
[BlackElo "2585"]
[TimeControl "180+1"]
[EndTime "14:16:38 PDT"]
[Termination "hansen won by checkmate"]

1. a3 {[%clk 0:02:55.7]} 1... Nf6 {[%clk 0:02:59.1]} 2. d4 {[%clk 0:02:55.1]}
2... d5 {[%clk 0:02:59.3]} 3. Nf3 {[%clk 0:02:51.9]} 3... Bf5 {[%clk 0:02:59.5]}
4. e3 {[%clk 0:02:44.9]} 4... e6 {[%clk 0:02:58.6]} 5. c4 {[%clk 0:02:43.4]}
5... c6 {[%clk 0:02:56.5]} 6. Bd3 {[%clk 0:02:43]} 6... Bg6 {[%clk 0:02:56.4]}
7. Qc2 {[%clk 0:02:43]} 7... Nbd7 {[%clk 0:02:53.5]} 8. Nbd2 {[%clk 0:02:42.7]}
8... Bd6 {[%clk 0:02:41.4]} 9. e4 {[%clk 0:02:37.9]} 9... dxe4 {[%clk
0:02:41.2]} 10. Nxe4 {[%clk 0:02:38.1]} 10... Nxe4 {[%clk 0:02:41.5]} 11. Bxe4
{[%clk 0:02:39]} 11... Nf6 {[%clk 0:02:41.6]} 12. Bxg6 {[%clk 0:02:38.3]} 12...
hxg6 {[%clk 0:02:41.9]} 13. h3 {[%clk 0:02:34.2]} 13... O-O {[%clk 0:02:37.5]}
14. O-O {[%clk 0:02:32.9]} 14... b5 {[%clk 0:02:30.6]} 15. Bg5 {[%clk
0:02:26.5]} 15... bxc4 {[%clk 0:02:16.2]} 16. Qxc4 {[%clk 0:02:26.6]} 16... Qb6
{[%clk 0:02:16.5]} 17. Rab1 {[%clk 0:02:19.3]} 17... Qb5 {[%clk 0:02:11.8]} 18.
Rfc1 {[%clk 0:02:19.2]} 18... Rfc8 {[%clk 0:02:09.6]} 19. Rc2 {[%clk 0:01:36.6]}
19... Rab8 {[%clk 0:01:58.9]} 20. Qa2 {[%clk 0:01:32.1]} 20... Nd5 {[%clk
0:01:40.3]} 21. Rbc1 {[%clk 0:01:27.2]} 21... a5 {[%clk 0:01:40.5]} 22. Nd2
{[%clk 0:01:17.6]} 22... Qd3 {[%clk 0:01:18.4]} 23. Qc4 {[%clk 0:01:07.9]} 23...
Qf5 {[%clk 0:01:01.4]} 24. Nf3 {[%clk 0:01:07.8]} 24... c5 {[%clk 0:00:41.5]}
25. Qa6 {[%clk 0:00:42.2]} 25... Bf4 {[%clk 0:00:32.8]} 26. Bxf4 {[%clk
0:00:37.2]} 26... Nxf4 {[%clk 0:00:29.8]} 27. Rxc5 {[%clk 0:00:35]} 27... Rxc5
{[%clk 0:00:28.5]} 28. Rxc5 {[%clk 0:00:35]} 28... Qb1+ {[%clk 0:00:15.5]} 29.
Kh2 {[%clk 0:00:34.9]} 29... Qxb2 {[%clk 0:00:16.1]} 30. Rc8+ {[%clk 0:00:33.6]}
30... Rxc8 {[%clk 0:00:13.7]} 31. Qxc8+ {[%clk 0:00:33.4]} 31... Kh7 {[%clk
0:00:14.2]} 32. Ng5+ {[%clk 0:00:33.9]} 32... Kh6 {[%clk 0:00:14.9]} 33. Nxf7+
{[%clk 0:00:34.6]} 33... Kh7 {[%clk 0:00:15.3]} 34. Qh8# {[%clk 0:00:35.2]} 1-0

[Event "Late-Titled-Tuesday-Blitz-October-10-2023"]
[Site "Chess.com"]
[Date "2023.10.10"]
[Round "2"]
[White "Grandmaster1369"]
[Black "GoldenShare"]
[Result "1-0"]
[WhiteElo "2768"]
[BlackElo "2529"]
[TimeControl "180+1"]
[EndTime "14:16:46 PDT"]
[Termination "Grandmaster1369 won by resignation"]

1. e4 {[%clk 0:02:59.6]} 1... e6 {[%clk 0:02:59.9]} 2. Nc3 {[%clk 0:03:00.1]}
2... c5 {[%clk 0:02:59.7]} 3. f4 {[%clk 0:02:59.5]} 3... a6 {[%clk 0:02:58.8]}
4. d3 {[%clk 0:02:55.3]} 4... b5 {[%clk 0:02:58.4]} 5. g3 {[%clk 0:02:55.5]}
5... Bb7 {[%clk 0:02:59.3]} 6. Bg2 {[%clk 0:02:55.8]} 6... b4 {[%clk 0:02:59.7]}
7. Nce2 {[%clk 0:02:55.1]} 7... d5 {[%clk 0:03:00.2]} 8. Nh3 {[%clk 0:02:53.5]}
8... dxe4 {[%clk 0:02:57.4]} 9. O-O {[%clk 0:02:49.7]} 9... Nf6 {[%clk
0:02:52.2]} 10. Ng5 {[%clk 0:02:45.5]} 10... Be7 {[%clk 0:02:52.1]} 11. Nxe4
{[%clk 0:02:41.4]} 11... Nxe4 {[%clk 0:02:49.8]} 12. dxe4 {[%clk 0:02:42.3]}
12... Qxd1 {[%clk 0:02:48]} 13. Rxd1 {[%clk 0:02:43.2]} 13... Nd7 {[%clk
0:02:38.6]} 14. Be3 {[%clk 0:02:42.4]} 14... Nb6 {[%clk 0:02:35.4]} 15. b3
{[%clk 0:02:40.9]} 15... O-O {[%clk 0:02:26]} 16. Nc1 {[%clk 0:02:30.9]} 16...
Rfd8 {[%clk 0:01:54.9]} 17. Nd3 {[%clk 0:02:30]} 17... Rac8 {[%clk 0:01:49.5]}
18. Nxb4 {[%clk 0:02:09.3]} 18... cxb4 {[%clk 0:01:22.7]} 19. Bxb6 {[%clk
0:02:08]} 19... Rxd1+ {[%clk 0:00:52.2]} 20. Rxd1 {[%clk 0:02:08.9]} 20... Bc6
{[%clk 0:00:36]} 21. Rd2 {[%clk 0:01:28.5]} 21... h5 {[%clk 0:00:27.2]} 22. Bf3
{[%clk 0:01:19]} 22... h4 {[%clk 0:00:27.1]} 23. Kf2 {[%clk 0:01:18.4]} 23...
Bb5 {[%clk 0:00:26.6]} 24. Bd4 {[%clk 0:01:15.3]} 24... hxg3+ {[%clk 0:00:23.5]}
25. hxg3 {[%clk 0:01:15.1]} 25... a5 {[%clk 0:00:23]} 26. Be2 {[%clk 0:01:11.2]}
26... Bc6 {[%clk 0:00:23.4]} 27. Ke3 {[%clk 0:01:08.7]} 27... a4 {[%clk
0:00:23.7]} 28. Bc4 {[%clk 0:01:02.5]} 28... Rd8 {[%clk 0:00:20.6]} 29. Bb6
{[%clk 0:01:00.5]} 29... Rb8 {[%clk 0:00:19]} 30. Bc7 {[%clk 0:00:59.5]} 30...
Rc8 {[%clk 0:00:19.1]} 31. Bd6 {[%clk 0:00:59]} 31... Bxd6 {[%clk 0:00:16.6]}
32. Rxd6 {[%clk 0:00:59.9]} 32... Be8 {[%clk 0:00:15.5]} 33. Rb6 {[%clk
0:00:58.9]} 33... e5 {[%clk 0:00:05.1]} 34. fxe5 {[%clk 0:00:57.2]} 34... Rd8
{[%clk 0:00:05.1]} 35. Rxb4 {[%clk 0:00:56.3]} 35... Rd1 {[%clk 0:00:05.5]} 36.
Rb8 {[%clk 0:00:55]} 36... Rd8 {[%clk 0:00:03.3]} 37. Rxd8 {[%clk 0:00:54.5]}
1-0

[Event "Late-Titled-Tuesday-Blitz-October-10-2023"]
[Site "Chess.com"]
[Date "2023.10.10"]
[Round "2"]
[White "WDCH"]
[Black "Necromon"]
[Result "1-0"]
[WhiteElo "2725"]
[BlackElo "2427"]
[TimeControl "180+1"]
[EndTime "14:16:47 PDT"]
[Termination "WDCH won by resignation"]

1. Nc3 {[%clk 0:03:00.9]} 1... c5 {[%clk 0:02:59.6]} 2. e4 {[%clk 0:03:01.8]}
2... Nc6 {[%clk 0:02:58.7]} 3. Nf3 {[%clk 0:03:01.3]} 3... g6 {[%clk 0:02:58.6]}
4. Bc4 {[%clk 0:03:01.2]} 4... Bg7 {[%clk 0:02:58.2]} 5. O-O {[%clk 0:03:02]}
5... e6 {[%clk 0:02:58.5]} 6. d3 {[%clk 0:03:02.7]} 6... Nge7 {[%clk 0:02:58.8]}
7. Bd2 {[%clk 0:03:03.1]} 7... O-O {[%clk 0:02:57.9]} 8. Qc1 {[%clk 0:03:03]}
8... d5 {[%clk 0:02:57.2]} 9. Bb3 {[%clk 0:03:03.1]} 9... Nd4 {[%clk 0:02:57]}
10. Nxd4 {[%clk 0:03:02.9]} 10... cxd4 {[%clk 0:02:57.5]} 11. Ne2 {[%clk
0:03:03.7]} 11... dxe4 {[%clk 0:02:57.7]} 12. dxe4 {[%clk 0:03:04.6]} 12... e5
{[%clk 0:02:56.4]} 13. Bh6 {[%clk 0:03:03.2]} 13... Qb6 {[%clk 0:02:53.7]} 14.
Ng3 {[%clk 0:02:54.6]} 14... Be6 {[%clk 0:02:45.1]} 15. Bxg7 {[%clk 0:02:51.3]}
15... Kxg7 {[%clk 0:02:44.3]} 16. Qg5 {[%clk 0:02:52]} 16... f6 {[%clk
0:02:40.8]} 17. Nh5+ {[%clk 0:02:38.5]} 17... Kh8 {[%clk 0:02:40.7]} 18. Nxf6
{[%clk 0:02:38.7]} 18... Bxb3 {[%clk 0:02:40.4]} 19. Nd7 {[%clk 0:02:39]} 19...
Qd6 {[%clk 0:02:33.7]} 20. Nxf8 {[%clk 0:02:23.3]} 20... Bg8 {[%clk 0:02:32]}
21. Nd7 {[%clk 0:01:51.2]} 21... Nc6 {[%clk 0:02:16.4]} 22. Nf6 {[%clk
0:01:44.8]} 22... Qe7 {[%clk 0:02:03.3]} 23. f4 {[%clk 0:01:45]} 23... Rf8
{[%clk 0:01:54]} 24. fxe5 {[%clk 0:01:45.1]} 24... Nxe5 {[%clk 0:01:54]} 25.
Nxh7 {[%clk 0:01:41]} 25... Rxf1+ {[%clk 0:01:47]} 26. Rxf1 {[%clk 0:01:40.5]}
26... Qc5 {[%clk 0:01:47.1]} 27. Qh6 {[%clk 0:01:26.1]} 27... d3+ {[%clk
0:01:37.3]} 28. Kh1 {[%clk 0:01:25.3]} 28... Ng4 {[%clk 0:01:25]} 29. Qh4 {[%clk
0:00:57]} 29... Qh5 {[%clk 0:00:48.2]} 30. Qxh5 {[%clk 0:00:40.2]} 30... gxh5
{[%clk 0:00:48.4]} 31. cxd3 {[%clk 0:00:35.3]} 31... Kxh7 {[%clk 0:00:48.2]} 32.
h3 {[%clk 0:00:35.9]} 32... Ne3 {[%clk 0:00:31.5]} 33. Rc1 {[%clk 0:00:35]}
33... Kg6 {[%clk 0:00:24.8]} 34. Kg1 {[%clk 0:00:35.1]} 34... Bxa2 {[%clk
0:00:19.1]} 35. Kf2 {[%clk 0:00:35]} 1-0

[Event "Late-Titled-Tuesday-Blitz-October-10-2023"]
[Site "Chess.com"]
[Date "2023.10.10"]
[Round "2"]
[White "h4parah5"]
[Black "Szczor"]
[Result "1-0"]
[WhiteElo "2938"]
[BlackElo "2596"]
[TimeControl "180+1"]
[EndTime "14:16:49 PDT"]
[Termination "h4parah5 won by resignation"]

1. d4 {[%clk 0:03:00.9]} 1... Nf6 {[%clk 0:03:00]} 2. Nf3 {[%clk 0:02:59.5]}
2... e6 {[%clk 0:02:58.8]} 3. e3 {[%clk 0:02:59.4]} 3... d5 {[%clk 0:02:58.1]}
4. Be2 {[%clk 0:02:59.3]} 4... Be7 {[%clk 0:02:58.8]} 5. O-O {[%clk 0:02:59.1]}
5... O-O {[%clk 0:02:59.6]} 6. b3 {[%clk 0:02:59]} 6... c5 {[%clk 0:03:00]} 7.
Bb2 {[%clk 0:02:58.8]} 7... Nc6 {[%clk 0:03:00.4]} 8. Nbd2 {[%clk 0:02:55.8]}
8... b6 {[%clk 0:03:00.3]} 9. a3 {[%clk 0:02:51.3]} 9... Bb7 {[%clk 0:03:00.9]}
10. Bd3 {[%clk 0:02:50.9]} 10... Rc8 {[%clk 0:02:59.5]} 11. Qe2 {[%clk
0:02:50.5]} 11... Re8 {[%clk 0:02:56.8]} 12. Rad1 {[%clk 0:02:48.2]} 12... Bd6
{[%clk 0:02:56.9]} 13. Ne5 {[%clk 0:02:47]} 13... Qc7 {[%clk 0:02:47.2]} 14. f4
{[%clk 0:02:45.4]} 14... Ne7 {[%clk 0:02:39.6]} 15. a4 {[%clk 0:02:20.1]} 15...
Ne4 {[%clk 0:02:35.7]} 16. Nxe4 {[%clk 0:02:15]} 16... dxe4 {[%clk 0:02:31.5]}
17. Bb5 {[%clk 0:02:13.8]} 17... Red8 {[%clk 0:02:24.3]} 18. Bc4 {[%clk
0:02:13.5]} 18... Nd5 {[%clk 0:02:08.1]} 19. Bxd5 {[%clk 0:02:10.1]} 19... exd5
{[%clk 0:02:00]} 20. dxc5 {[%clk 0:02:08.5]} 20... bxc5 {[%clk 0:01:53.3]} 21.
c4 {[%clk 0:02:08.1]} 21... f6 {[%clk 0:01:48.4]} 22. Ng4 {[%clk 0:02:05.3]}
22... d4 {[%clk 0:01:33.6]} 23. exd4 {[%clk 0:02:04.1]} 23... cxd4 {[%clk
0:01:31]} 24. Bxd4 {[%clk 0:02:04.1]} 24... Bxf4 {[%clk 0:01:30.6]} 25. Nxf6+
{[%clk 0:01:59.6]} 25... gxf6 {[%clk 0:00:53.4]} 26. Qg4+ {[%clk 0:01:58.7]}
26... Bg5 {[%clk 0:00:53.9]} 27. Bxf6 {[%clk 0:01:47]} 27... Qc5+ {[%clk
0:00:52]} 28. Kh1 {[%clk 0:01:46.7]} 28... Rxd1 {[%clk 0:00:52.2]} 29. Rxd1
{[%clk 0:01:46.3]} 29... Rf8 {[%clk 0:00:17.1]} 30. Qe6+ {[%clk 0:01:39.8]}
30... Rf7 {[%clk 0:00:13.5]} 31. Rd8+ {[%clk 0:01:39.1]} 31... Qf8 {[%clk
0:00:13.7]} 32. Rxf8+ {[%clk 0:01:33.7]} 32... Kxf8 {[%clk 0:00:14.6]} 33. Qd6+
{[%clk 0:01:31.1]} 33... Kg8 {[%clk 0:00:14.5]} 34. Qb8+ {[%clk 0:01:27.5]}
34... Rf8 {[%clk 0:00:12.2]} 35. Qxb7 {[%clk 0:01:26.1]} 35... Rxf6 {[%clk
0:00:11.9]} 36. h4 {[%clk 0:01:21.9]} 36... Rf1+ {[%clk 0:00:10.5]} 37. Kh2
{[%clk 0:01:21.7]} 37... Bf4+ {[%clk 0:00:09.9]} 38. g3 {[%clk 0:01:21.8]} 38...
e3 {[%clk 0:00:09.6]} 39. Qc8+ {[%clk 0:01:19.2]} 39... Kg7 {[%clk 0:00:09.4]}
40. gxf4 {[%clk 0:01:18.5]} 40... Rxf4 {[%clk 0:00:03]} 41. Qc7+ {[%clk
0:01:17.5]} 41... Rf7 {[%clk 0:00:03.5]} 42. Qe5+ {[%clk 0:01:17.6]} 42... Kf8
{[%clk 0:00:03.9]} 43. Qxe3 {[%clk 0:01:17.5]} 1-0

[Event "Late-Titled-Tuesday-Blitz-October-10-2023"]
[Site "Chess.com"]
[Date "2023.10.10"]
[Round "2"]
[White "KamlaPasand"]
[Black "KejJaj"]
[Result "1-0"]
[WhiteElo "2447"]
[BlackElo "2163"]
[TimeControl "180+1"]
[EndTime "14:16:51 PDT"]
[Termination "KamlaPasand won by resignation"]

1. e4 {[%clk 0:01:42.4]} 1... c5 {[%clk 0:02:59.7]} 2. Nf3 {[%clk 0:01:42.3]}
2... d6 {[%clk 0:03:00.3]} 3. d4 {[%clk 0:01:42.9]} 3... cxd4 {[%clk 0:03:01]}
4. Nxd4 {[%clk 0:01:43.8]} 4... Nf6 {[%clk 0:03:01.2]} 5. Nc3 {[%clk 0:01:44.1]}
5... g6 {[%clk 0:03:01.6]} 6. Be3 {[%clk 0:01:43.6]} 6... Bg7 {[%clk 0:03:02.1]}
7. f3 {[%clk 0:01:44.1]} 7... O-O {[%clk 0:03:02.7]} 8. Bc4 {[%clk 0:01:44.8]}
8... Nc6 {[%clk 0:03:03.2]} 9. Qd2 {[%clk 0:01:45.5]} 9... Nd7 {[%clk
0:03:03.3]} 10. O-O-O {[%clk 0:01:45.2]} 10... Nb6 {[%clk 0:03:03.8]} 11. Be2
{[%clk 0:01:45.8]} 11... Be6 {[%clk 0:02:49]} 12. Kb1 {[%clk 0:01:40.5]} 12...
Rc8 {[%clk 0:02:42.7]} 13. b3 {[%clk 0:01:38.5]} 13... a5 {[%clk 0:02:36.3]} 14.
h4 {[%clk 0:01:37.7]} 14... a4 {[%clk 0:02:34.1]} 15. h5 {[%clk 0:01:37.8]}
15... axb3 {[%clk 0:02:23.6]} 16. cxb3 {[%clk 0:01:34.1]} 16... Nxd4 {[%clk
0:02:16.6]} 17. Bxd4 {[%clk 0:01:33.8]} 17... Bxd4 {[%clk 0:02:12.5]} 18. Qxd4
{[%clk 0:01:34.7]} 18... f6 {[%clk 0:02:03.2]} 19. hxg6 {[%clk 0:01:30.3]} 19...
hxg6 {[%clk 0:02:02.9]} 20. Qd2 {[%clk 0:01:29.8]} 20... Kf7 {[%clk 0:01:59.8]}
21. Rh7+ {[%clk 0:01:28.8]} 21... Ke8 {[%clk 0:01:55.1]} 22. Bb5+ {[%clk
0:01:28.3]} 22... Bd7 {[%clk 0:01:54.1]} 23. Rdh1 {[%clk 0:01:18.6]} 23... Bxb5
{[%clk 0:01:49.1]} 24. Nxb5 {[%clk 0:01:18.6]} 24... Qd7 {[%clk 0:01:44.1]} 25.
Nd4 {[%clk 0:01:15.3]} 25... Kd8 {[%clk 0:01:30.4]} 26. Rg7 {[%clk 0:01:14.3]}
26... g5 {[%clk 0:01:29.6]} 27. Rhh7 {[%clk 0:01:14]} 27... Re8 {[%clk
0:01:28.4]} 28. Nf5 {[%clk 0:01:12.6]} 28... Rc7 {[%clk 0:01:10.9]} 29. Nxe7
{[%clk 0:00:55.5]} 29... Rxe7 {[%clk 0:01:10.4]} 30. Rh8+ {[%clk 0:00:50.3]}
30... Re8 {[%clk 0:01:09.7]} 31. Rxd7+ {[%clk 0:00:46.4]} 31... Rxd7 {[%clk
0:01:10]} 32. Rxe8+ {[%clk 0:00:46.8]} 32... Kxe8 {[%clk 0:01:10.5]} 33. Qd4
{[%clk 0:00:46.5]} 33... Nc8 {[%clk 0:01:02.6]} 34. Qxf6 {[%clk 0:00:46.5]}
34... g4 {[%clk 0:00:58]} 35. Qg6+ {[%clk 0:00:45.6]} 35... Kd8 {[%clk
0:00:57.3]} 36. Qxg4 {[%clk 0:00:46.5]} 36... Kc7 {[%clk 0:00:57.3]} 37. Qh5
{[%clk 0:00:43.9]} 37... Ne7 {[%clk 0:00:55.3]} 38. g4 {[%clk 0:00:43.8]} 38...
Nc6 {[%clk 0:00:53.7]} 39. f4 {[%clk 0:00:42.2]} 39... Nd4 {[%clk 0:00:53.5]}
40. Qa5+ {[%clk 0:00:39.7]} 40... b6 {[%clk 0:00:50.2]} 41. Qc3+ {[%clk
0:00:39.3]} 41... Nc6 {[%clk 0:00:49.7]} 42. g5 {[%clk 0:00:39.3]} 42... b5
{[%clk 0:00:49.2]} 43. g6 {[%clk 0:00:39.1]} 43... b4 {[%clk 0:00:49.4]} 44. Qc4
{[%clk 0:00:38.6]} 44... Rg7 {[%clk 0:00:48]} 45. f5 {[%clk 0:00:38.2]} 45...
Kb7 {[%clk 0:00:46.6]} 46. Qf7+ {[%clk 0:00:37.8]} 46... Rxf7 {[%clk 0:00:44.9]}
47. gxf7 {[%clk 0:00:38.7]} 1-0

[Event "Late-Titled-Tuesday-Blitz-October-10-2023"]
[Site "Chess.com"]
[Date "2023.10.10"]
[Round "2"]
[White "talaicito"]
[Black "CarlosjPineror"]
[Result "0-1"]
[WhiteElo "2217"]
[BlackElo "2491"]
[TimeControl "180+1"]
[EndTime "14:16:52 PDT"]
[Termination "CarlosjPineror won on time"]

1. d4 {[%clk 0:02:57.3]} 1... Nf6 {[%clk 0:02:59.1]} 2. Nc3 {[%clk 0:02:54.4]}
2... d5 {[%clk 0:02:57.8]} 3. Bf4 {[%clk 0:02:54.9]} 3... c5 {[%clk 0:02:54.3]}
4. e3 {[%clk 0:02:55.3]} 4... a6 {[%clk 0:02:53.2]} 5. Nf3 {[%clk 0:02:55.6]}
5... Nc6 {[%clk 0:02:53]} 6. Ne5 {[%clk 0:02:54.6]} 6... e6 {[%clk 0:02:46]} 7.
g4 {[%clk 0:02:41.6]} 7... Qa5 {[%clk 0:02:40]} 8. Qd2 {[%clk 0:02:33.4]} 8...
Nxe5 {[%clk 0:02:39]} 9. dxe5 {[%clk 0:01:58.4]} 9... Nxg4 {[%clk 0:02:38.2]}
10. Rg1 {[%clk 0:01:55.7]} 10... Nh6 {[%clk 0:02:36.5]} 11. Bh3 {[%clk
0:01:52.1]} 11... Bd7 {[%clk 0:02:32.5]} 12. O-O-O {[%clk 0:01:44.8]} 12...
O-O-O {[%clk 0:02:31.3]} 13. Kb1 {[%clk 0:01:44.2]} 13... Ng8 {[%clk 0:01:46.9]}
14. Bg5 {[%clk 0:01:01.5]} 14... f6 {[%clk 0:01:39.4]} 15. Bh4 {[%clk
0:00:59.5]} 15... Kb8 {[%clk 0:01:34.9]} 16. exf6 {[%clk 0:00:48.8]} 16... Nxf6
{[%clk 0:01:34.4]} 17. Bg3+ {[%clk 0:00:47.3]} 17... Ka7 {[%clk 0:01:26.5]} 18.
Be5 {[%clk 0:00:44.7]} 18... Qb6 {[%clk 0:01:16]} 19. f3 {[%clk 0:00:38.6]}
19... Ne8 {[%clk 0:01:02.7]} 20. Ka1 {[%clk 0:00:35.9]} 20... Rg8 {[%clk
0:01:00.2]} 21. Qd3 {[%clk 0:00:34.3]} 21... g6 {[%clk 0:00:59.3]} 22. Ne2
{[%clk 0:00:24.2]} 22... Bd6 {[%clk 0:00:58.7]} 23. Qc3 {[%clk 0:00:12.5]} 23...
Be7 {[%clk 0:00:47.3]} 24. Nf4 {[%clk 0:00:12]} 24... Rf8 {[%clk 0:00:41]} 25.
a3 {[%clk 0:00:07]} 25... Bf6 {[%clk 0:00:37.8]} 26. Ka2 {[%clk 0:00:03.3]}
26... d4 {[%clk 0:00:27.9]} 27. exd4 {[%clk 0:00:02.7]} 27... Bxe5 {[%clk
0:00:28]} 0-1

[Event "Late-Titled-Tuesday-Blitz-October-10-2023"]
[Site "Chess.com"]
[Date "2023.10.10"]
[Round "2"]
[White "matagordo"]
[Black "RCone"]
[Result "1-0"]
[WhiteElo "2233"]
[BlackElo "2457"]
[TimeControl "180+1"]
[EndTime "14:16:53 PDT"]
[Termination "matagordo won by checkmate"]

1. d4 {[%clk 0:03:00.9]} 1... d6 {[%clk 0:03:00.1]} 2. Bf4 {[%clk 0:02:58.7]}
2... Nd7 {[%clk 0:02:59.4]} 3. Nf3 {[%clk 0:02:53]} 3... g6 {[%clk 0:02:59.3]}
4. e4 {[%clk 0:02:51.1]} 4... Bg7 {[%clk 0:02:59.5]} 5. e5 {[%clk 0:02:51.8]}
5... c5 {[%clk 0:02:28.4]} 6. exd6 {[%clk 0:02:47.1]} 6... cxd4 {[%clk
0:02:28.5]} 7. dxe7 {[%clk 0:01:58.8]} 7... Qxe7+ {[%clk 0:02:28.1]} 8. Be2
{[%clk 0:01:59.3]} 8... d3 {[%clk 0:02:28]} 9. Qxd3 {[%clk 0:01:58.5]} 9... Bxb2
{[%clk 0:02:27.8]} 10. Bd6 {[%clk 0:01:58.5]} 10... Qf6 {[%clk 0:01:55.9]} 11.
Nbd2 {[%clk 0:01:40.6]} 11... Bxa1 {[%clk 0:01:55.3]} 12. Ne4 {[%clk 0:01:38.5]}
12... Qg7 {[%clk 0:01:23.2]} 13. Bb4 {[%clk 0:01:02]} 13... Be5 {[%clk 0:01:08]}
14. Nxe5 {[%clk 0:00:45]} 14... Qxe5 {[%clk 0:01:01.3]} 15. Nd6+ {[%clk
0:00:40.7]} 15... Qxd6 {[%clk 0:00:38.7]} 16. Qxd6 {[%clk 0:00:41.6]} 16... a5
{[%clk 0:00:24]} 17. Bc3 {[%clk 0:00:34.8]} 17... f6 {[%clk 0:00:22.1]} 18. Bb5
{[%clk 0:00:27.4]} 18... Kd8 {[%clk 0:00:09.7]} 19. O-O {[%clk 0:00:16.6]} 19...
Ra6 {[%clk 0:00:05.9]} 20. Bxa6 {[%clk 0:00:16]} 20... bxa6 {[%clk 0:00:06.8]}
21. Rd1 {[%clk 0:00:14.8]} 21... Ne7 {[%clk 0:00:06.3]} 22. Bxf6 {[%clk
0:00:14.6]} 22... Re8 {[%clk 0:00:05.9]} 23. Qb6# {[%clk 0:00:10.4]} 1-0